[Event "The Schackveckan 2023: Göteborg open"]
[Site "Göteborgs schackcentrum, Vegagatan 20, Gothenburg, Sweden"]
[Date "2023.08.11"]
[Round "4.5"]
[White "Westlund, Tim"]
[Black "Bengtsson, Siv"]
[Result "0-1"]
[TimeControl "15 minutes + 5 seconds per move from move one (Round 1 - 4) / 90 minutes + 30 seconds per move from move one (Round 5 - 8)"]
[WhiteFideId "1754718"]
[BlackFideId "1701673"]
[WhiteElo "1861"]
[BlackElo "2010"]

1. e4 {[%clk 00:15:09]} c5 {[%clk 00:15:09]} {[%emt 00:00:02]} 2. Nf3 {[%clk
00:15:10]} {[%emt 00:00:01]} Nc6 {[%clk 00:15:12]} {[%emt 00:00:04]} 3. Bb5
{[%clk 00:15:13]} {[%emt 00:00:02]} d6 {[%clk 00:15:15]} {[%emt 00:00:02]} 4.
Bxc6+ {[%clk 00:15:10]} {[%emt 00:00:09]} bxc6 {[%clk 00:15:19]} {[%emt
00:00:01]} 5. d3 {[%clk 00:15:10]} {[%emt 00:00:05]} e5 {[%clk 00:15:21]}
{[%emt 00:00:02]} 6. Nc3 {[%clk 00:15:06]} {[%emt 00:00:09]} f5 {[%clk
00:15:20]} {[%emt 00:00:05]} 7. Qe2 {[%clk 00:15:00]} {[%emt 00:00:12]} Nf6
{[%clk 00:15:13]} {[%emt 00:00:12]} 8. Bd2 {[%clk 00:14:56]} {[%emt 00:00:09]}
Be7 {[%clk 00:14:55]} {[%emt 00:00:23]} 9. b3 {[%clk 00:14:43]} {[%emt
00:00:18]} O-O {[%clk 00:14:48]} {[%emt 00:00:11]} 10. a4 {[%clk 00:14:24]}
{[%emt 00:00:25]} a5 {[%clk 00:14:14]} {[%emt 00:00:39]} 11. h3 {[%clk
00:13:57]} {[%emt 00:00:31]} fxe4 {[%clk 00:13:37]} {[%emt 00:00:44]} 12. Nxe4
{[%clk 00:13:53]} {[%emt 00:00:09]} Nxe4 {[%clk 00:13:19]} {[%emt 00:00:23]} 13.
dxe4 {[%clk 00:13:49]} {[%emt 00:00:10]} Rb8 {[%clk 00:11:37]} {[%emt
00:01:47]} 14. O-O {[%clk 00:13:50]} {[%emt 00:00:03]} Be6 {[%clk 00:11:27]}
{[%emt 00:00:15]} 15. Qe1 {[%clk 00:13:16]} {[%emt 00:00:39]} Rxf3 {[%clk
00:09:38]} {[%emt 00:01:53]} 16. gxf3 {[%clk 00:12:43]} {[%emt 00:00:39]} Bxh3
{[%clk 00:09:42]} {[%emt 00:00:01]} 17. Kh2 {[%clk 00:12:39]} {[%emt 00:00:08]}
Bxf1 {[%clk 00:09:31]} {[%emt 00:00:17]} 18. Qxf1 {[%clk 00:12:42]} {[%emt
00:00:02]} Bg5 {[%clk 00:07:49]} {[%emt 00:01:48]} 19. Bxg5 {[%clk 00:11:34]}
{[%emt 00:01:12]} Qxg5 {[%clk 00:07:52]} 20. Qh3 {[%clk 00:11:33]} {[%emt
00:00:06]} Qf4+ {[%clk 00:06:47]} {[%emt 00:01:10]} 21. Qg3 {[%clk 00:11:30]}
{[%emt 00:00:08]} Rf8 {[%clk 00:06:45]} {[%emt 00:00:07]} 22. Kg2 {[%clk
00:10:50]} {[%emt 00:00:46]} Rf6 {[%clk 00:06:03]} {[%emt 00:00:47]} 23. Qh3
{[%clk 00:09:26]} {[%emt 00:01:28]} h6 {[%clk 00:04:44]} {[%emt 00:01:24]} 24.
Rg1 {[%clk 00:08:17]} {[%emt 00:01:14]} Kh7 {[%clk 00:04:06]} {[%emt 00:00:43]}
25. Kh1 {[%clk 00:08:12]} {[%emt 00:00:10]} Qxf3+ {[%clk 00:04:04]} {[%emt
00:00:07]} 26. Qxf3 {[%clk 00:07:33]} {[%emt 00:00:45]} Rxf3 {[%clk 00:04:08]}
{[%emt 00:00:01]} 27. Rd1 {[%clk 00:07:35]} {[%emt 00:00:03]} Rf6 {[%clk
00:03:46]} {[%emt 00:00:26]} 28. Kg2 {[%clk 00:07:38]} g5 {[%clk 00:03:51]} 29.
f3 {[%clk 00:07:37]} {[%emt 00:00:07]} Kg7 {[%clk 00:03:49]} {[%emt 00:00:07]}
30. Kg3 {[%clk 00:07:39]} {[%emt 00:00:02]} Kf7 {[%clk 00:03:52]} {[%emt
00:00:03]} 31. Rh1 {[%clk 00:07:39]} {[%emt 00:00:05]} Ke6 {[%clk 00:03:47]}
{[%emt 00:00:10]} 32. c4 {[%clk 00:07:24]} {[%emt 00:00:20]} Kf7 {[%clk
00:03:42]} {[%emt 00:00:10]} 33. Kg4 {[%clk 00:07:25]} {[%emt 00:00:04]} Kg6
{[%clk 00:03:40]} {[%emt 00:00:09]} 34. Rd1 {[%clk 00:07:16]} {[%emt 00:00:12]}
h5+ {[%clk 00:03:43]} {[%emt 00:00:02]} 35. Kg3 {[%clk 00:07:19]} {[%emt
00:00:02]} h4+ {[%clk 00:03:39]} {[%emt 00:00:09]} 36. Kg2 {[%clk 00:07:17]}
{[%emt 00:00:07]} Kh5 {[%clk 00:03:39]} {[%emt 00:00:05]} 37. Rd3 {[%clk
00:07:16]} {[%emt 00:00:06]} g4 {[%clk 00:03:29]} {[%emt 00:00:15]} 38. fxg4+
{[%clk 00:07:12]} {[%emt 00:00:10]} Kxg4 {[%clk 00:03:32]} 39. Kh2 {[%clk
00:07:11]} {[%emt 00:00:06]} Kf4 {[%clk 00:03:24]} {[%emt 00:00:14]} 40. Rh3
{[%clk 00:07:08]} {[%emt 00:00:08]} Kxe4 {[%clk 00:03:25]} {[%emt 00:00:04]} 41.
Rxh4+ {[%clk 00:07:10]} {[%emt 00:00:03]} Kd3 {[%clk 00:03:23]} {[%emt
00:00:06]} 42. Rh3+ {[%clk 00:07:13]} {[%emt 00:00:02]} Kd4 {[%clk 00:03:14]}
{[%emt 00:00:15]} 43. Kg2 {[%clk 00:07:15]} {[%emt 00:00:03]} e4 {[%clk
00:03:16]} {[%emt 00:00:03]} 44. Rh1 {[%clk 00:06:56]} {[%emt 00:00:24]} e3
{[%clk 00:03:12]} {[%emt 00:00:09]} 45. Re1 {[%clk 00:06:52]} {[%emt 00:00:09]}
Kd3 {[%clk 00:03:12]} {[%emt 00:00:05]} 46. b4 {[%clk 00:06:19]} {[%emt
00:00:38]} cxb4 {[%clk 00:03:08]} {[%emt 00:00:09]} 47. Rc1 {[%clk 00:06:17]}
{[%emt 00:00:07]} e2 {[%clk 00:02:59]} {[%emt 00:00:14]} 48. c5 {[%clk
00:06:13]} {[%emt 00:00:09]} dxc5 {[%clk 00:02:58]} {[%emt 00:00:06]} 49. Rh1
{[%clk 00:04:26]} {[%emt 00:01:52]} Kd2 {[%clk 00:02:55]} {[%emt 00:00:07]} 50.
Rh2 {[%clk 00:03:48]} {[%emt 00:00:43]} e1=Q {[%clk 00:02:23]} {[%emt
00:00:37]} 51. Kh3+ {[%clk 00:03:50]} {[%emt 00:00:04]} Kc3 {[%clk 00:02:18]}
{[%emt 00:00:08]} 0-1

[Event "The Schackveckan 2023: Göteborg open"]
[Site "Göteborgs schackcentrum, Vegagatan 20, Gothenburg, Sweden"]
[Date "2023.08.11"]
[Round "4.6"]
[White "Krantz, Martin"]
[Black "Johansson, Roy"]
[Result "1-0"]
[TimeControl "15 minutes + 5 seconds per move from move one (Round 1 - 4) / 90 minutes + 30 seconds per move from move one (Round 5 - 8)"]
[WhiteFideId "1724100"]
[BlackFideId "1745972"]
[WhiteElo "2000"]
[BlackElo "1890"]

1. d4 {[%clk 00:15:05]} {[%emt 00:35:07]} f5 {[%clk 00:15:05]} {[%emt
00:00:03]} 2. Nf3 {[%clk 00:14:33]} {[%emt 00:00:50]} g6 {[%clk 00:15:08]}
{[%emt 00:00:03]} 3. g3 {[%clk 00:14:20]} {[%emt 00:00:19]} Nf6 {[%clk
00:15:10]} {[%emt 00:00:03]} 4. Bg2 {[%clk 00:14:20]} {[%emt 00:00:04]} Bg7
{[%clk 00:15:13]} {[%emt 00:00:02]} 5. c4 {[%clk 00:13:57]} {[%emt 00:00:28]}
O-O {[%clk 00:15:14]} {[%emt 00:00:04]} 6. O-O {[%clk 00:13:55]} {[%emt
00:00:08]} d6 {[%clk 00:15:16]} {[%emt 00:00:02]} 7. d5 {[%clk 00:13:14]}
{[%emt 00:00:46]} Qe8 {[%clk 00:15:17]} {[%emt 00:00:04]} 8. Nc3 {[%clk
00:13:07]} {[%emt 00:00:11]} Na6 {[%clk 00:15:15]} {[%emt 00:00:08]} 9. Be3
{[%clk 00:12:29]} {[%emt 00:00:44]} Bd7 {[%clk 00:15:12]} {[%emt 00:00:08]} 10.
Qd2 {[%clk 00:12:20]} {[%emt 00:00:13]} c6 {[%clk 00:14:59]} {[%emt 00:00:18]}
11. Bh6 {[%clk 00:11:43]} {[%emt 00:00:41]} Bxh6 {[%clk 00:14:31]} {[%emt
00:00:35]} 12. Qxh6 {[%clk 00:11:47]} e5 {[%clk 00:14:29]} {[%emt 00:00:06]} 13.
dxe6 {[%clk 00:11:20]} {[%emt 00:00:32]} Bxe6 {[%clk 00:14:13]} {[%emt
00:00:21]} 14. Rad1 {[%clk 00:10:12]} {[%emt 00:01:13]} d5 {[%clk 00:13:51]}
{[%emt 00:00:28]} 15. cxd5 {[%clk 00:09:58]} {[%emt 00:00:19]} Nxd5 {[%clk
00:13:50]} {[%emt 00:00:06]} 16. Nxd5 {[%clk 00:09:11]} {[%emt 00:00:52]} cxd5
{[%clk 00:12:23]} {[%emt 00:01:32]} 17. Ng5 {[%clk 00:08:52]} {[%emt 00:00:23]}
Rf7 {[%clk 00:12:09]} {[%emt 00:00:20]} 18. Nxe6 {[%clk 00:08:13]} {[%emt
00:00:44]} Qxe6 {[%clk 00:12:01]} {[%emt 00:00:12]} 19. Bxd5 {[%clk 00:08:14]}
{[%emt 00:00:04]} Qf6 {[%clk 00:11:51]} {[%emt 00:00:15]} 20. Rd2 {[%clk
00:06:54]} {[%emt 00:01:24]} Nc5 {[%clk 00:11:45]} {[%emt 00:00:13]} 21. Rfd1
{[%clk 00:06:43]} {[%emt 00:00:15]} Raf8 {[%clk 00:10:05]} {[%emt 00:01:46]} 22.
Bxf7+ {[%clk 00:06:41]} {[%emt 00:00:07]} Qxf7 {[%clk 00:09:53]} {[%emt
00:00:17]} 23. b4 {[%clk 00:06:29]} {[%emt 00:00:17]} Ne4 {[%clk 00:09:00]}
{[%emt 00:00:57]} 24. Rd7 {[%clk 00:06:27]} {[%emt 00:00:07]} 1-0

[Event "The Schackveckan 2023: Göteborg open"]
[Site "Göteborgs schackcentrum, Vegagatan 20, Gothenburg, Sweden"]
[Date "2023.08.11"]
[Round "4.7"]
[White "Andersson, Stig"]
[Black "Wesslen, Ulf"]
[Result "1-0"]
[TimeControl "15 minutes + 5 seconds per move from move one (Round 1 - 4) / 90 minutes + 30 seconds per move from move one (Round 5 - 8)"]
[WhiteFideId "1731971"]
[BlackFideId "1705199"]
[WhiteElo "1811"]
[BlackElo "1916"]

1. e4 {[%clk 00:15:07]} {[%emt 00:00:03]} e6 {[%clk 00:15:06]} {[%emt
00:00:04]} 2. d4 {[%clk 00:15:04]} {[%emt 00:00:08]} d5 {[%clk 00:15:07]}
{[%emt 00:00:04]} 3. Nc3 {[%clk 00:14:19]} {[%emt 00:00:51]} Bb4 {[%clk
00:14:55]} {[%emt 00:00:16]} 4. e5 {[%clk 00:13:42]} {[%emt 00:00:42]} c5
{[%clk 00:14:27]} {[%emt 00:00:33]} 5. a3 {[%clk 00:13:39]} {[%emt 00:00:08]}
Bxc3+ {[%clk 00:13:55]} {[%emt 00:00:36]} 6. bxc3 {[%clk 00:13:42]} {[%emt
00:00:04]} Qa5 {[%clk 00:13:41]} {[%emt 00:00:18]} 7. Bd2 {[%clk 00:13:07]}
{[%emt 00:00:40]} Qa4 {[%clk 00:13:11]} {[%emt 00:00:36]} 8. Nf3 {[%clk
00:11:20]} {[%emt 00:01:50]} Nc6 {[%clk 00:12:11]} {[%emt 00:01:06]} 9. Be3
{[%clk 00:08:43]} {[%emt 00:02:42]} f6 {[%clk 00:10:54]} {[%emt 00:01:22]} 10.
Be2 {[%clk 00:07:50]} {[%emt 00:00:58]} Qa5 {[%clk 00:06:57]} {[%emt 00:04:03]}
11. Qd2 {[%clk 00:07:52]} {[%emt 00:00:03]} Qc7 {[%clk 00:06:28]} {[%emt
00:00:34]} 12. exf6 {[%clk 00:07:24]} {[%emt 00:00:33]} Nxf6 {[%clk 00:06:03]}
{[%emt 00:00:30]} 13. Bf4 {[%clk 00:07:25]} {[%emt 00:00:04]} Qe7 {[%clk
00:05:22]} {[%emt 00:00:46]} 14. Ne5 {[%clk 00:06:23]} {[%emt 00:01:06]} O-O
{[%clk 00:04:45]} {[%emt 00:00:42]} 15. Bg3 {[%clk 00:05:07]} {[%emt 00:01:22]}
Ne4 {[%clk 00:04:03]} {[%emt 00:00:46]} 16. Qe3 {[%clk 00:05:07]} {[%emt
00:00:04]} Bd7 {[%clk 00:03:46]} {[%emt 00:00:22]} 17. O-O {[%clk 00:05:06]}
{[%emt 00:00:07]} Rac8 {[%clk 00:03:20]} {[%emt 00:00:31]} 18. Bf3 {[%clk
00:02:26]} {[%emt 00:02:45]} Nd6 {[%clk 00:02:54]} {[%emt 00:00:31]} 19. dxc5
{[%clk 00:02:11]} {[%emt 00:00:21]} Nf5 {[%clk 00:02:57]} {[%emt 00:00:01]} 20.
Nxc6 {[%clk 00:01:42]} {[%emt 00:00:34]} Rxc6 {[%clk 00:02:47]} {[%emt
00:00:15]} 21. Qe5 {[%clk 00:01:40]} {[%emt 00:00:08]} Nxg3 {[%clk 00:02:41]}
{[%emt 00:00:10]} 22. hxg3 {[%clk 00:01:32]} {[%emt 00:00:12]} Rxc5 {[%clk
00:02:44]} {[%emt 00:00:03]} 23. Rab1 {[%clk 00:01:25]} {[%emt 00:00:13]} b6
{[%clk 00:02:41]} {[%emt 00:00:07]} 24. Rb4 {[%clk 00:01:28]} {[%emt 00:00:02]}
Rcc8 {[%clk 00:02:11]} {[%emt 00:00:34]} 25. Rd1 {[%clk 00:01:31]} {[%emt
00:00:03]} Rf5 {[%clk 00:02:11]} {[%emt 00:00:05]} 26. Qe3 {[%clk 00:01:27]}
{[%emt 00:00:07]} Qf6 {[%clk 00:02:03]} {[%emt 00:00:14]} 27. Qd4 {[%clk
00:01:19]} {[%emt 00:00:13]} Qf8 {[%clk 00:01:49]} {[%emt 00:00:20]} 28. Re1
{[%clk 00:01:14]} {[%emt 00:00:10]} Re8 {[%clk 00:01:42]} {[%emt 00:00:11]} 29.
Bg4 {[%clk 00:01:06]} {[%emt 00:00:14]} Rf6 {[%clk 00:01:45]} {[%emt 00:00:02]}
30. Rf1 {[%clk 00:00:59]} {[%emt 00:00:11]} Bc6 {[%clk 00:01:42]} {[%emt
00:00:08]} 31. Qe5 {[%clk 00:00:54]} {[%emt 00:00:10]} Qf7 {[%clk 00:01:28]}
{[%emt 00:00:19]} 32. Rf4 {[%clk 00:00:50]} {[%emt 00:00:09]} Rxf4 {[%clk
00:01:20]} {[%emt 00:00:14]} 33. gxf4 {[%clk 00:00:54]} {[%emt 00:00:02]} Qf6
{[%clk 00:01:20]} {[%emt 00:00:04]} 34. Re1 {[%clk 00:00:52]} {[%emt 00:00:07]}
Bd7 {[%clk 00:01:21]} {[%emt 00:00:04]} 35. g3 {[%clk 00:00:54]} {[%emt
00:00:03]} Qg6 {[%clk 00:01:22]} {[%emt 00:00:04]} 36. Bh5 {[%clk 00:00:53]}
{[%emt 00:00:05]} Qxc2 {[%clk 00:01:01]} {[%emt 00:00:27]} 37. Bxe8 {[%clk
00:00:54]} {[%emt 00:00:04]} Bxe8 {[%clk 00:01:05]} 38. Qxe6+ {[%clk 00:00:57]}
{[%emt 00:00:02]} 1-0

[Event "The Schackveckan 2023: Göteborg open"]
[Site "Göteborgs schackcentrum, Vegagatan 20, Gothenburg, Sweden"]
[Date "2023.08.11"]
[Round "4.8"]
[White "Granath, Jonas"]
[Black "Buzleta, Patrik"]
[Result "0-1"]
[TimeControl "15 minutes + 5 seconds per move from move one (Round 1 - 4) / 90 minutes + 30 seconds per move from move one (Round 5 - 8)"]
[WhiteFideId "1761013"]
[BlackFideId "1755463"]
[WhiteElo "1896"]
[BlackElo "1604"]

1. e4 {[%clk 00:15:09]} e6 {[%clk 00:15:10]} {[%emt 00:00:01]} 2. d4 {[%clk
00:15:12]} {[%emt 00:00:01]} d6 {[%clk 00:15:14]} 3. Nf3 {[%clk 00:15:07]}
{[%emt 00:00:11]} g6 {[%clk 00:15:17]} {[%emt 00:00:03]} 4. Be3 {[%clk
00:14:55]} {[%emt 00:00:16]} a6 {[%clk 00:15:20]} {[%emt 00:00:02]} 5. Nc3
{[%clk 00:14:30]} {[%emt 00:00:29]} Bg7 {[%clk 00:15:18]} {[%emt 00:00:08]} 6.
Qd2 {[%clk 00:14:24]} {[%emt 00:00:10]} h6 {[%clk 00:15:22]} {[%emt 00:00:02]}
7. Bd3 {[%clk 00:14:20]} {[%emt 00:00:09]} Ne7 {[%clk 00:15:18]} {[%emt
00:00:09]} 8. O-O {[%clk 00:13:38]} {[%emt 00:00:47]} Qd7 {[%clk 00:15:14]}
{[%emt 00:00:10]} 9. Rad1 {[%clk 00:13:30]} {[%emt 00:00:12]} b6 {[%clk
00:15:16]} {[%emt 00:00:03]} 10. Rfe1 {[%clk 00:12:55]} {[%emt 00:00:40]} Bb7
{[%clk 00:15:09]} {[%emt 00:00:12]} 11. Ne2 {[%clk 00:12:41]} {[%emt 00:00:20]}
g5 {[%clk 00:15:10]} {[%emt 00:00:04]} 12. h3 {[%clk 00:11:33]} {[%emt
00:01:12]} Nbc6 {[%clk 00:15:10]} {[%emt 00:00:06]} 13. d5 {[%clk 00:11:17]}
{[%emt 00:00:21]} Na7 {[%clk 00:14:42]} {[%emt 00:00:34]} 14. c4 {[%clk
00:10:12]} {[%emt 00:01:09]} O-O-O {[%clk 00:14:30]} {[%emt 00:00:15]} 15. b4
{[%clk 00:09:56]} {[%emt 00:00:23]} Kb8 {[%clk 00:14:33]} {[%emt 00:00:02]} 16.
Nc3 {[%clk 00:08:25]} {[%emt 00:01:35]} Rhg8 {[%clk 00:14:24]} {[%emt
00:00:15]} 17. Bc2 {[%clk 00:08:06]} {[%emt 00:00:24]} g4 {[%clk 00:14:18]}
{[%emt 00:00:11]} 18. hxg4 {[%clk 00:07:53]} {[%emt 00:00:18]} Bxc3 {[%clk
00:14:19]} {[%emt 00:00:03]} 19. Qxc3 {[%clk 00:07:54]} {[%emt 00:00:04]} exd5
{[%clk 00:14:15]} {[%emt 00:00:10]} 20. g5 {[%clk 00:05:58]} {[%emt 00:02:01]}
dxe4 {[%clk 00:14:03]} {[%emt 00:00:17]} 21. Nd2 {[%clk 00:05:28]} {[%emt
00:00:35]} f5 {[%clk 00:13:42]} {[%emt 00:00:26]} 22. gxh6 {[%clk 00:03:05]}
{[%emt 00:02:27]} f4 {[%clk 00:13:16]} {[%emt 00:00:31]} 23. Bxf4 {[%clk
00:03:00]} {[%emt 00:00:10]} e3 {[%clk 00:13:02]} {[%emt 00:00:20]} 24. Ne4
{[%clk 00:02:47]} {[%emt 00:00:18]} Qg4 {[%clk 00:12:51]} {[%emt 00:00:14]} 25.
g3 {[%clk 00:01:43]} {[%emt 00:01:09]} Qxf4 {[%clk 00:12:33]} {[%emt 00:00:24]}
26. Qxe3 {[%clk 00:01:29]} {[%emt 00:00:20]} Qg4 {[%clk 00:12:05]} {[%emt
00:00:33]} 27. Nf6 {[%clk 00:01:03]} {[%emt 00:00:31]} Qh3 {[%clk 00:11:52]}
{[%emt 00:00:17]} 28. Be4 {[%clk 00:01:05]} {[%emt 00:00:03]} Nf5 {[%clk
00:11:53]} {[%emt 00:00:04]} 29. Qf3 {[%clk 00:00:38]} {[%emt 00:00:31]} Nxg3
{[%clk 00:11:25]} {[%emt 00:00:34]} 30. Nxg8 {[%clk 00:00:41]} {[%emt
00:00:02]} Rxg8 {[%clk 00:11:28]} {[%emt 00:00:03]} 31. Qg2 {[%clk 00:00:21]}
{[%emt 00:00:25]} Ne2+ {[%emt 00:00:02]} 32. Rxe2 {[%clk 00:00:20]} {[%emt
00:00:04]} Rxg2+ {[%clk 00:11:35]} {[%emt 00:00:02]} 33. Kf1 {[%clk 00:00:19]}
{[%emt 00:00:07]} Qh1# {[%clk 00:10:27]} {[%emt 00:00:04]} 34. h7 0-1

[Event "The Schackveckan 2023: Göteborg open"]
[Site "Göteborgs schackcentrum, Vegagatan 20, Gothenburg, Sweden"]
[Date "2023.08.11"]
[Round "4.9"]
[White "Johansson, William"]
[Black "Degerfeldt, Sven"]
[Result "0-1"]
[TimeControl "15 minutes + 5 seconds per move from move one (Round 1 - 4) / 90 minutes + 30 seconds per move from move one (Round 5 - 8)"]
[WhiteFideId "1744070"]
[BlackFideId "1717430"]
[WhiteElo "2052"]
[BlackElo "1821"]

1. e4 {[%clk 00:15:08]} {[%emt 00:00:03]} c5 {[%clk 00:15:09]} {[%emt
00:00:01]} 2. c3 {[%clk 00:15:11]} {[%emt 00:00:01]} d5 {[%clk 00:15:11]}
{[%emt 00:00:03]} 3. exd5 {[%clk 00:15:15]} {[%emt 00:00:02]} Qxd5 {[%clk
00:15:15]} {[%emt 00:00:01]} 4. d4 {[%clk 00:15:08]} {[%emt 00:00:12]} Nf6
{[%clk 00:15:18]} {[%emt 00:00:02]} 5. Nf3 {[%clk 00:15:04]} {[%emt 00:00:09]}
Nc6 {[%clk 00:14:09]} {[%emt 00:01:13]} 6. Nbd2 {[%clk 00:12:46]} {[%emt
00:02:23]} cxd4 {[%clk 00:13:43]} {[%emt 00:00:31]} 7. Bc4 {[%clk 00:12:38]}
{[%emt 00:00:13]} Qd6 {[%clk 00:13:43]} {[%emt 00:00:05]} 8. cxd4 {[%clk
00:10:42]} {[%emt 00:02:02]} e6 {[%clk 00:13:23]} {[%emt 00:00:25]} 9. Qa4
{[%clk 00:05:48]} {[%emt 00:05:00]} Bd7 {[%clk 00:13:16]} {[%emt 00:00:11]} 10.
Bb5 {[%clk 00:05:43]} {[%emt 00:00:10]} a6 {[%clk 00:13:14]} {[%emt 00:00:08]}
11. Nc4 {[%clk 00:04:40]} {[%emt 00:01:08]} Qc7 {[%clk 00:11:43]} {[%emt
00:01:35]} 12. O-O {[%clk 00:03:57]} {[%emt 00:00:47]} Rc8 {[%clk 00:11:36]}
{[%emt 00:00:12]} 13. Bxc6 {[%clk 00:04:00]} {[%emt 00:00:02]} Bxc6 {[%clk
00:11:37]} {[%emt 00:00:04]} 14. Qa5 {[%clk 00:03:42]} {[%emt 00:00:24]} Bxf3
{[%clk 00:11:21]} {[%emt 00:00:21]} 15. gxf3 {[%clk 00:01:38]} {[%emt
00:02:09]} Qxc4 {[%clk 00:10:36]} {[%emt 00:00:48]} 16. Bf4 {[%clk 00:01:33]}
{[%emt 00:00:11]} Qb5 {[%clk 00:08:07]} {[%emt 00:02:33]} 17. Qd2 {[%clk
00:01:22]} {[%emt 00:00:17]} Be7 {[%clk 00:07:59]} {[%emt 00:00:13]} 18. a4
{[%clk 00:01:25]} {[%emt 00:00:02]} Qd5 {[%clk 00:07:55]} {[%emt 00:00:08]} 19.
Rac1 {[%clk 00:00:58]} {[%emt 00:00:33]} O-O {[%clk 00:07:50]} {[%emt
00:00:10]} 20. Qe3 {[%clk 00:00:39]} {[%emt 00:00:24]} Rfd8 {[%clk 00:07:45]}
{[%emt 00:00:10]} 21. Kh1 {[%clk 00:00:33]} {[%emt 00:00:11]} Bd6 {[%clk
00:07:03]} {[%emt 00:00:48]} 22. Bg5 {[%clk 00:00:21]} {[%emt 00:00:16]} Qf5
{[%clk 00:06:53]} {[%emt 00:00:14]} 0-1

[Event "The Schackveckan 2023: Göteborg open"]
[Site "Göteborgs schackcentrum, Vegagatan 20, Gothenburg, Sweden"]
[Date "2023.08.11"]
[Round "4.10"]
[White "Ottgard, Andreas"]
[Black "Pintaric, Felix"]
[Result "1-0"]
[TimeControl "15 minutes + 5 seconds per move from move one (Round 1 - 4) / 90 minutes + 30 seconds per move from move one (Round 5 - 8)"]
[WhiteFideId "1730592"]
[BlackFideId "1776096"]
[WhiteElo "1874"]
[BlackElo "1483"]

1. c4 {[%clk 00:15:08]} {[%emt 00:00:01]} e5 {[%clk 00:15:09]} {[%emt
00:00:01]} 2. g3 {[%clk 00:15:11]} {[%emt 00:00:02]} c6 {[%clk 00:15:09]}
{[%emt 00:00:05]} 3. d4 {[%clk 00:15:09]} {[%emt 00:00:07]} exd4 {[%clk
00:15:11]} {[%emt 00:00:04]} 4. Qxd4 {[%clk 00:15:03]} {[%emt 00:00:10]} Nf6
{[%clk 00:15:07]} {[%emt 00:00:10]} 5. Bg2 {[%clk 00:14:40]} {[%emt 00:00:28]}
Be7 {[%clk 00:15:01]} {[%emt 00:00:10]} 6. Nc3 {[%clk 00:14:37]} {[%emt
00:00:08]} O-O {[%clk 00:14:51]} {[%emt 00:00:16]} 7. e4 {[%clk 00:14:15]}
{[%emt 00:00:26]} d6 {[%clk 00:14:38]} {[%emt 00:00:19]} 8. Bf4 {[%clk
00:13:34]} {[%emt 00:00:45]} Be6 {[%clk 00:14:00]} {[%emt 00:00:43]} 9. Rd1
{[%clk 00:12:30]} {[%emt 00:01:09]} Na6 {[%clk 00:13:48]} {[%emt 00:00:17]} 10.
b3 {[%clk 00:12:04]} {[%emt 00:00:32]} Qa5 {[%clk 00:13:00]} {[%emt 00:00:53]}
11. Nge2 {[%clk 00:11:43]} {[%emt 00:00:26]} Rfd8 {[%clk 00:12:28]} {[%emt
00:00:37]} 12. O-O {[%clk 00:11:10]} {[%emt 00:00:38]} Nh5 {[%clk 00:12:09]}
{[%emt 00:00:23]} 13. Be3 {[%clk 00:10:38]} {[%emt 00:00:37]} Bf6 {[%clk
00:11:59]} {[%emt 00:00:16]} 14. Qd2 {[%clk 00:10:35]} {[%emt 00:00:08]} Nc7
{[%clk 00:10:19]} {[%emt 00:01:45]} 15. h3 {[%clk 00:10:15]} {[%emt 00:00:24]}
Rac8 {[%clk 00:09:54]} {[%emt 00:00:31]} 16. g4 {[%clk 00:10:10]} {[%emt
00:00:09]} Bxc3 {[%emt 00:00:26]} 17. Qxc3 {[%clk 00:09:45]} {[%emt 00:00:07]}
Qxc3 {[%clk 00:09:53]} {[%emt 00:00:08]} 18. Nxc3 {[%clk 00:09:48]} {[%emt
00:00:03]} Nf6 {[%clk 00:09:51]} {[%emt 00:00:06]} 19. Bxa7 {[%clk 00:09:48]}
{[%emt 00:00:05]} h6 {[%clk 00:08:59]} {[%emt 00:00:58]} 20. Bb6 {[%clk
00:09:09]} {[%emt 00:00:44]} Rd7 {[%clk 00:08:35]} {[%emt 00:00:29]} 21. f4
{[%clk 00:09:09]} {[%emt 00:00:04]} Na8 {[%clk 00:07:56]} {[%emt 00:00:45]} 22.
Bf2 {[%clk 00:08:39]} {[%emt 00:00:33]} b5 {[%clk 00:06:51]} {[%emt 00:01:11]}
23. f5 {[%clk 00:07:52]} {[%emt 00:00:53]} Bxc4 {[%clk 00:06:54]} 24. bxc4
{[%clk 00:07:56]} {[%emt 00:00:02]} bxc4 {[%clk 00:06:58]} {[%emt 00:00:01]} 25.
Bg3 {[%clk 00:07:48]} {[%emt 00:00:13]} Ne8 {[%clk 00:05:48]} {[%emt 00:01:14]}
26. Rd4 {[%clk 00:07:41]} {[%emt 00:00:12]} Nb6 {[%clk 00:05:47]} {[%emt
00:00:06]} 27. Rfd1 {[%clk 00:07:38]} {[%emt 00:00:08]} Rcd8 {[%clk 00:05:50]}
{[%emt 00:00:02]} 28. Bf1 {[%clk 00:07:08]} {[%emt 00:00:35]} d5 {[%clk
00:05:46]} {[%emt 00:00:10]} 29. exd5 {[%clk 00:06:48]} {[%emt 00:00:25]} cxd5
{[%clk 00:05:49]} {[%emt 00:00:01]} 30. Bg2 {[%clk 00:06:45]} {[%emt 00:00:08]}
Rc8 {[%clk 00:05:16]} {[%emt 00:00:38]} 31. Bxd5 {[%clk 00:06:24]} {[%emt
00:00:26]} 1-0